[Event "Titled Tuesday Blitz January 31 Early 2023"]
[White "Guliev, Logman"]
[Black "Vlassov, Nikolai"]
[WhiteFideId "13400061"]
[BlackFideId "4103360"]
[WhiteElo "2250"]
[BlackElo "2283"]
[Result "0-1"]
[Round "07"]
[TimeControl "180+2"]
[Date "2023.01.31"]
[WhiteClock "0:00:10"]
[BlackClock "0:00:47"]

1. e4 {[%clk 0:03:00]}  Nc6 {[%clk 0:02:58]} 2. d4 {[%clk 0:02:57]}  d5 {[%clk 0:02:58]} 3. e5 {[%clk 0:02:57]}  h5 {[%clk 0:02:58]} 4. c3 {[%clk 0:02:57]}  Bg4 {[%clk 0:02:57]} 5. Be2 {[%clk 0:02:56]}  Qd7 {[%clk 0:02:57]} 6. h3 {[%clk 0:02:55]}  Bxe2 {[%clk 0:02:57]} 7. Nxe2 {[%clk 0:02:55]}  O-O-O {[%clk 0:02:57]} 8. O-O {[%clk 0:02:55]}  f6 {[%clk 0:02:57]} 9. f4 {[%clk 0:02:55]}  g5 {[%clk 0:02:57]} 10. exf6 {[%clk 0:02:47]}  g4 {[%clk 0:02:48]} 11. h4 {[%clk 0:02:33]}  Nxf6 {[%clk 0:02:46]} 12. Ng3 {[%clk 0:02:30]}  e6 {[%clk 0:02:44]} 13. f5 {[%clk 0:02:28]}  e5 {[%clk 0:02:43]} 14. Bg5 {[%clk 0:02:20]}  Be7 {[%clk 0:02:43]} 15. dxe5 {[%clk 0:02:03]}  Nxe5 {[%clk 0:02:42]} 16. Qd4 {[%clk 0:02:02]}  Nc6 {[%clk 0:02:32]} 17. Qd3 {[%clk 0:01:45]}  Rdf8 {[%clk 0:02:22]} 18. Nd2 {[%clk 0:01:43]}  Nh7 {[%clk 0:02:05]} 19. Bxe7 {[%clk 0:01:38]}  Qxe7 {[%clk 0:02:03]} 20. f6 {[%clk 0:01:17]}  Nxf6 {[%clk 0:01:53]} 21. Nb3 {[%clk 0:01:08]}  Ne4 {[%clk 0:01:48]} 22. Rae1 {[%clk 0:01:02]}  Qxh4 {[%clk 0:01:45]} 23. Nxe4 {[%clk 0:00:52]}  dxe4 {[%clk 0:01:44]} 24. Qxe4 {[%clk 0:00:52]}  Rxf1+ {[%clk 0:01:22]} 25. Rxf1 {[%clk 0:00:50]}  Qe7 {[%clk 0:01:16]} 26. Qf5+ {[%clk 0:00:34]}  Kb8 {[%clk 0:01:16]} 27. Nc5 {[%clk 0:00:33]}  b6 {[%clk 0:00:59]} 28. Nd7+ {[%clk 0:00:13]}  Kb7 {[%clk 0:00:59]} 29. Qd5 {[%clk 0:00:10]}  Rh6 {[%clk 0:00:47]} 0-1


[Site "https://www.chess.com"]

[Event "Titled Tuesday Blitz January 31 Early 2023"]
[White "Taspinar, Yanki"]
[Black "Vovk, Orest"]
[WhiteFideId "34561188"]
[BlackFideId "14113490"]
[WhiteElo "2262"]
[BlackElo "2315"]
[Result "1-0"]
[Round "07"]
[TimeControl "180+2"]
[Date "2023.01.31"]
[WhiteClock "0:00:04"]
[BlackClock "0:00:01"]

1. Nf3 {[%clk 0:02:57]}  Nf6 {[%clk 0:02:58]} 2. g3 {[%clk 0:02:57]}  d5 {[%clk 0:02:58]} 3. Bg2 {[%clk 0:02:58]}  c6 {[%clk 0:02:55]} 4. O-O {[%clk 0:02:59]}  g6 {[%clk 0:02:55]} 5. d4 {[%clk 0:02:58]}  Bg7 {[%clk 0:02:56]} 6. b3 {[%clk 0:02:59]}  O-O {[%clk 0:02:56]} 7. Bb2 {[%clk 0:03:00]}  Bg4 {[%clk 0:02:49]} 8. Nbd2 {[%clk 0:03:01]}  Qd7 {[%clk 0:02:46]} 9. Ne5 {[%clk 0:02:59]}  Qe6 {[%clk 0:02:45]} 10. Nxg4 {[%clk 0:02:58]}  Qxg4 {[%clk 0:02:44]} 11. c4 {[%clk 0:02:55]}  a5 {[%clk 0:02:42]} 12. Rc1 {[%clk 0:02:51]}  a4 {[%clk 0:02:40]} 13. Nf3 {[%clk 0:02:31]}  axb3 {[%clk 0:02:05]} 14. axb3 {[%clk 0:02:32]}  Ne4 {[%clk 0:02:01]} 15. Ne5 {[%clk 0:02:28]}  Bxe5 {[%clk 0:01:58]} 16. dxe5 {[%clk 0:02:29]}  Ra2 {[%clk 0:01:53]} 17. Rc2 {[%clk 0:02:14]}  Qf5 {[%clk 0:01:38]} 18. Qd4 {[%clk 0:01:49]}  Nxg3 {[%clk 0:01:32]} 19. Rd2 {[%clk 0:01:23]}  Ne4 {[%clk 0:01:23]} 20. Bxe4 {[%clk 0:01:20]}  dxe4 {[%clk 0:01:19]} 21. Rfd1 {[%clk 0:01:19]}  Na6 {[%clk 0:01:12]} 22. Qb6 {[%clk 0:01:15]}  Qc8 {[%clk 0:00:59]} 23. Bc3 {[%clk 0:01:04]}  Rxd2 {[%clk 0:00:57]} 24. Rxd2 {[%clk 0:01:05]}  Nc7 {[%clk 0:00:38]} 25. Qe3 {[%clk 0:00:46]}  Qg4+ {[%clk 0:00:37]} 26. Qg3 {[%clk 0:00:45]}  Qf5 {[%clk 0:00:31]} 27. Bb4 {[%clk 0:00:44]}  Ra8 {[%clk 0:00:26]} 28. Bxe7 {[%clk 0:00:27]}  Ra1+ {[%clk 0:00:25]} 29. Kg2 {[%clk 0:00:27]}  Ne6 {[%clk 0:00:25]} 30. e3 {[%clk 0:00:20]}  h6 {[%clk 0:00:23]} 31. Bf6 {[%clk 0:00:19]}  Kh7 {[%clk 0:00:18]} 32. h4 {[%clk 0:00:19]}  g5 {[%clk 0:00:14]} 33. h5 {[%clk 0:00:16]}  g4 {[%clk 0:00:12]} 34. b4 {[%clk 0:00:13]}  Qf3+ {[%clk 0:00:10]} 35. Qxf3 {[%clk 0:00:12]}  gxf3+ {[%clk 0:00:10]} 36. Kh2 {[%clk 0:00:09]}  Re1 {[%clk 0:00:08]} 37. Rd7 {[%clk 0:00:08]}  Rf1 {[%clk 0:00:04]} 38. Bh4 {[%clk 0:00:07]}  Ng5 {[%clk 0:00:03]} 39. e6 {[%clk 0:00:04]}  Nxe6 {[%clk 0:00:01]} 40. Rxf7+ {[%clk 0:00:05]}  Kg8 {[%clk 0:00:02]} 41. Rxb7 {[%clk 0:00:06]}  Ng5 {[%clk 0:00:01]} 42. b5 {[%clk 0:00:04]} 1-0


[Site "https://www.chess.com"]

[Event "Titled Tuesday Blitz January 31 Early 2023"]
[White "Erzhanov, Arman"]
[Black "Panesso Rivera, Henry"]
[WhiteFideId "4138821"]
[BlackFideId "4402707"]
[WhiteElo "2228"]
[BlackElo "2342"]
[Result "0-1"]
[Round "07"]
[TimeControl "180+2"]
[Date "2023.01.31"]
[WhiteClock "0:00:10"]
[BlackClock "0:00:46"]

1. e4 {[%clk 0:01:32]}  e5 {[%clk 0:02:57]} 2. Nf3 {[%clk 0:01:32]}  Nc6 {[%clk 0:02:57]} 3. Bb5 {[%clk 0:01:32]}  a6 {[%clk 0:02:54]} 4. Bxc6 {[%clk 0:01:33]}  dxc6 {[%clk 0:02:54]} 5. O-O {[%clk 0:01:34]}  f6 {[%clk 0:02:42]} 6. d4 {[%clk 0:01:34]}  Bg4 {[%clk 0:02:38]} 7. dxe5 {[%clk 0:01:32]}  Qxd1 {[%clk 0:02:38]} 8. Rxd1 {[%clk 0:01:33]}  Bxf3 {[%clk 0:02:38]} 9. Rd3 {[%clk 0:01:34]}  Bh5 {[%clk 0:02:32]} 10. exf6 {[%clk 0:01:33]}  Nxf6 {[%clk 0:02:31]} 11. f3 {[%clk 0:01:33]}  Bc5+ {[%clk 0:02:30]} 12. Kh1 {[%clk 0:01:32]}  Rd8 {[%clk 0:02:29]} 13. Nd2 {[%clk 0:01:31]}  Rxd3 {[%clk 0:02:29]} 14. cxd3 {[%clk 0:01:32]}  Bf7 {[%clk 0:02:27]} 15. Nb3 {[%clk 0:01:33]}  Bxb3 {[%clk 0:02:27]} 16. axb3 {[%clk 0:01:33]}  Bd4 {[%clk 0:02:27]} 17. Bf4 {[%clk 0:01:33]}  Kd7 {[%clk 0:02:26]} 18. Ra2 {[%clk 0:01:26]}  c5 {[%clk 0:02:22]} 19. g3 {[%clk 0:01:26]}  Rf8 {[%clk 0:02:21]} 20. Kg2 {[%clk 0:01:27]}  h6 {[%clk 0:02:19]} 21. Bc1 {[%clk 0:01:25]}  Ne8 {[%clk 0:02:15]} 22. Ra4 {[%clk 0:01:23]}  Nd6 {[%clk 0:02:12]} 23. f4 {[%clk 0:01:23]}  Nb5 {[%clk 0:02:11]} 24. g4 {[%clk 0:01:11]}  Rd8 {[%clk 0:02:04]} 25. e5 {[%clk 0:01:07]}  Ke6 {[%clk 0:02:03]} 26. Kf3 {[%clk 0:01:07]}  g5 {[%clk 0:01:48]} 27. fxg5 {[%clk 0:01:02]}  hxg5 {[%clk 0:01:49]} 28. Bxg5 {[%clk 0:01:02]}  Rf8+ {[%clk 0:01:49]} 29. Kg2 {[%clk 0:00:47]}  Rf2+ {[%clk 0:01:42]} 30. Kg3 {[%clk 0:00:47]}  Rxb2 {[%clk 0:01:41]} 31. Bf4 {[%clk 0:00:45]}  Rxb3 {[%clk 0:01:41]} 32. h4 {[%clk 0:00:43]}  Rxd3+ {[%clk 0:01:41]} 33. Kg2 {[%clk 0:00:43]}  Bxe5 {[%clk 0:01:32]} 34. Re4 {[%clk 0:00:44]}  Rd5 {[%clk 0:01:28]} 35. h5 {[%clk 0:00:30]}  Nd6 {[%clk 0:01:22]} 36. Re2 {[%clk 0:00:25]}  Nf7 {[%clk 0:01:15]} 37. g5 {[%clk 0:00:20]}  Nxg5 {[%clk 0:01:05]} 38. Bxg5 {[%clk 0:00:20]}  Kd6 {[%clk 0:01:04]} 39. h6 {[%clk 0:00:19]}  Bd4 {[%clk 0:01:01]} 40. Bf4+ {[%clk 0:00:16]}  Kc6 {[%clk 0:01:02]} 41. Kf3 {[%clk 0:00:14]}  a5 {[%clk 0:01:01]} 42. Kg4 {[%clk 0:00:13]}  a4 {[%clk 0:01:01]} 43. h7 {[%clk 0:00:14]}  Rd7 {[%clk 0:00:59]} 44. Rh2 {[%clk 0:00:12]}  Bh8 {[%clk 0:00:53]} 45. Kf5 {[%clk 0:00:11]}  b5 {[%clk 0:00:51]} 46. Be5 {[%clk 0:00:11]}  Rd5 {[%clk 0:00:51]} 47. Rh6+ {[%clk 0:00:10]}  Kb7 {[%clk 0:00:50]} 48. Re6 {[%clk 0:00:10]}  a3 {[%clk 0:00:46]} 49. Ke4 {[%clk 0:00:09]}  Rxe5+ {[%clk 0:00:44]} 50. Rxe5 {[%clk 0:00:09]}  Bxe5 {[%clk 0:00:45]} 51. Kxe5 {[%clk 0:00:10]}  a2 {[%clk 0:00:46]} 0-1


[Site "https://www.chess.com"]

[Event "Titled Tuesday Blitz January 31 Early 2023"]
[White "Korchmar, Vasiliy"]
[Black "Vagman, Roy"]
[WhiteFideId "24131750"]
[BlackFideId "2828995"]
[WhiteElo "2438"]
[BlackElo "2273"]
[Result "0-1"]
[Round "07"]
[TimeControl "180+2"]
[Date "2023.01.31"]
[WhiteClock "0:02:22"]
[BlackClock "0:00:06"]

1. e4 {[%clk 0:03:00]}  d6 {[%clk 0:02:57]} 2. d4 {[%clk 0:03:00]}  g6 {[%clk 0:02:54]} 3. Bd3 {[%clk 0:03:00]}  Bg7 {[%clk 0:02:53]} 4. c3 {[%clk 0:03:01]}  Nd7 {[%clk 0:02:50]} 5. Nf3 {[%clk 0:03:01]}  c5 {[%clk 0:02:50]} 6. O-O {[%clk 0:03:02]}  Ngf6 {[%clk 0:02:47]} 7. Re1 {[%clk 0:03:02]}  cxd4 {[%clk 0:02:45]} 8. cxd4 {[%clk 0:03:02]}  O-O {[%clk 0:02:40]} 9. Nc3 {[%clk 0:03:01]}  Nb6 {[%clk 0:02:26]} 10. h3 {[%clk 0:03:00]}  Nfd7 {[%clk 0:01:59]} 11. Bg5 {[%clk 0:02:59]}  h6 {[%clk 0:01:50]} 12. Be3 {[%clk 0:02:59]}  e5 {[%clk 0:01:40]} 13. d5 {[%clk 0:02:58]}  f5 {[%clk 0:01:38]} 14. exf5 {[%clk 0:02:57]}  gxf5 {[%clk 0:01:37]} 15. Bc2 {[%clk 0:02:41]}  Qf6 {[%clk 0:01:33]} 16. g3 {[%clk 0:02:38]}  Nc4 {[%clk 0:01:07]} 17. Bc1 {[%clk 0:02:38]}  e4 {[%clk 0:00:56]} 18. Nh4 {[%clk 0:02:35]}  Nde5 {[%clk 0:00:49]} 19. Bf4 {[%clk 0:02:34]}  Nxb2 {[%clk 0:00:47]} 20. Qc1 {[%clk 0:02:34]}  Nbd3 {[%clk 0:00:46]} 21. Qd1 {[%clk 0:02:29]}  Nxe1 {[%clk 0:00:43]} 22. Qxe1 {[%clk 0:02:30]}  Qxh4 {[%clk 0:00:31]} 23. Bxe5 {[%clk 0:02:30]}  Qxh3 {[%clk 0:00:21]} 24. Bxg7 {[%clk 0:02:30]}  Kxg7 {[%clk 0:00:22]} 25. Ne2 {[%clk 0:02:31]}  Qg4 {[%clk 0:00:17]} 26. Nf4 {[%clk 0:02:31]}  Bd7 {[%clk 0:00:12]} 27. Qc3+ {[%clk 0:02:30]}  Kh7 {[%clk 0:00:09]} 28. Qc7 {[%clk 0:02:31]}  Rf7 {[%clk 0:00:09]} 29. Qxd6 {[%clk 0:02:31]}  Rg8 {[%clk 0:00:09]} 30. Kg2 {[%clk 0:02:31]}  Qf3+ {[%clk 0:00:09]} 31. Kg1 {[%clk 0:02:29]}  e3 {[%clk 0:00:09]} 32. Rf1 {[%clk 0:02:24]}  exf2+ {[%clk 0:00:08]} 33. Rxf2 {[%clk 0:02:25]}  Qxg3+ {[%clk 0:00:08]} 34. Kf1 {[%clk 0:02:26]}  Bb5+ {[%clk 0:00:07]} 35. Ne2 {[%clk 0:02:22]}  Qg1# {[%clk 0:00:06]} 0-1


[Site "https://www.chess.com"]

[Event "Titled Tuesday Blitz January 31 Early 2023"]
[White "Bruned, Yvain"]
[Black "Yelisieiev, Yevhenii"]
[WhiteFideId "2250292"]
[BlackFideId "14139642"]
[WhiteElo "2286"]
[BlackElo "2418"]
[Result "0-1"]
[Round "07"]
[TimeControl "180+2"]
[Date "2023.01.31"]
[WhiteClock "0:00:27"]
[BlackClock "0:01:27"]

1. b3 {[%clk 0:03:00]}  d6 {[%clk 0:03:00]} 2. Bb2 {[%clk 0:03:01]}  Nf6 {[%clk 0:03:01]} 3. Bxf6 {[%clk 0:03:01]}  exf6 {[%clk 0:03:01]} 4. c4 {[%clk 0:03:01]}  g6 {[%clk 0:03:01]} 5. Nc3 {[%clk 0:03:02]}  Bg7 {[%clk 0:03:02]} 6. g3 {[%clk 0:03:02]}  f5 {[%clk 0:03:03]} 7. Bg2 {[%clk 0:03:03]}  O-O {[%clk 0:03:03]} 8. e3 {[%clk 0:03:04]}  c6 {[%clk 0:03:03]} 9. Nge2 {[%clk 0:03:04]}  d5 {[%clk 0:03:02]} 10. cxd5 {[%clk 0:03:03]}  cxd5 {[%clk 0:03:03]} 11. Bxd5 {[%clk 0:02:57]}  Nc6 {[%clk 0:03:03]} 12. O-O {[%clk 0:02:56]}  Nb4 {[%clk 0:03:02]} 13. Bg2 {[%clk 0:02:49]}  Nd3 {[%clk 0:03:01]} 14. Qb1 {[%clk 0:02:43]}  Rb8 {[%clk 0:02:44]} 15. Nc1 {[%clk 0:02:32]}  Nxc1 {[%clk 0:02:28]} 16. Qxc1 {[%clk 0:02:33]}  Qd3 {[%clk 0:02:28]} 17. Rd1 {[%clk 0:02:29]}  b5 {[%clk 0:02:26]} 18. Bf1 {[%clk 0:02:30]}  Qd7 {[%clk 0:02:22]} 19. d4 {[%clk 0:02:26]}  b4 {[%clk 0:02:20]} 20. Na4 {[%clk 0:02:25]}  Rd8 {[%clk 0:02:15]} 21. Qc2 {[%clk 0:02:20]}  Bb7 {[%clk 0:02:12]} 22. Nc5 {[%clk 0:02:10]}  Qc6 {[%clk 0:02:12]} 23. d5 {[%clk 0:01:01]}  Rxd5 {[%clk 0:02:09]} 24. Rxd5 {[%clk 0:00:58]}  Qxd5 {[%clk 0:01:56]} 25. Nxb7 {[%clk 0:00:56]}  Bxa1 {[%clk 0:01:55]} 26. Bg2 {[%clk 0:00:56]}  Qe5 {[%clk 0:01:41]} 27. h4 {[%clk 0:00:36]}  h5 {[%clk 0:01:36]} 28. Kh2 {[%clk 0:00:31]}  Bc3 {[%clk 0:01:34]} 29. Bf3 {[%clk 0:00:27]}  Qc7 {[%clk 0:01:27]} 0-1


[Site "https://www.chess.com"]

[Event "Titled Tuesday Blitz January 31 Early 2023"]
[White "Myshakov, Fyodor"]
[Black "Weetik, Vjacheslav"]
[WhiteFideId "14111284"]
[BlackFideId "4153472"]
[WhiteElo "2292"]
[BlackElo "2423"]
[Result "0-1"]
[Round "07"]
[TimeControl "180+2"]
[Date "2023.01.31"]
[WhiteClock "0:00:13"]
[BlackClock "0:00:13"]

1. c4 {[%clk 0:02:58]}  g6 {[%clk 0:02:55]} 2. Nc3 {[%clk 0:02:59]}  Bg7 {[%clk 0:02:54]} 3. Nf3 {[%clk 0:02:59]}  Nf6 {[%clk 0:02:50]} 4. g3 {[%clk 0:02:59]}  c6 {[%clk 0:02:48]} 5. Bg2 {[%clk 0:02:59]}  d5 {[%clk 0:02:48]} 6. cxd5 {[%clk 0:03:00]}  cxd5 {[%clk 0:02:48]} 7. d4 {[%clk 0:03:00]}  O-O {[%clk 0:02:46]} 8. O-O {[%clk 0:03:00]}  Ne4 {[%clk 0:02:43]} 9. Nxe4 {[%clk 0:02:46]}  dxe4 {[%clk 0:02:42]} 10. Ne5 {[%clk 0:02:46]}  Nc6 {[%clk 0:02:30]} 11. Nxc6 {[%clk 0:02:44]}  bxc6 {[%clk 0:02:30]} 12. Bxe4 {[%clk 0:02:37]}  Bxd4 {[%clk 0:02:20]} 13. Bxc6 {[%clk 0:02:25]}  Bh3 {[%clk 0:02:09]} 14. Re1 {[%clk 0:02:09]}  Qb6 {[%clk 0:01:38]} 15. Bg2 {[%clk 0:01:09]}  Bxf2+ {[%clk 0:01:36]} 16. Kh1 {[%clk 0:01:09]}  Bxg2+ {[%clk 0:01:16]} 17. Kxg2 {[%clk 0:01:10]}  Rfd8 {[%clk 0:01:10]} 18. Bd2 {[%clk 0:01:07]}  Bxe1 {[%clk 0:00:44]} 19. Qxe1 {[%clk 0:01:05]}  Qxb2 {[%clk 0:00:42]} 20. Bc3 {[%clk 0:01:03]}  Qb7+ {[%clk 0:00:41]} 21. Kg1 {[%clk 0:01:02]}  Rac8 {[%clk 0:00:39]} 22. Be5 {[%clk 0:00:48]}  Rc2 {[%clk 0:00:31]} 23. Bf4 {[%clk 0:00:33]}  Qe4 {[%clk 0:00:28]} 24. Rd1 {[%clk 0:00:19]}  Rxd1 {[%clk 0:00:19]} 25. Qxd1 {[%clk 0:00:18]}  Qxe2 {[%clk 0:00:17]} 26. Qd8+ {[%clk 0:00:15]}  Kg7 {[%clk 0:00:18]} 27. Qd4+ {[%clk 0:00:14]}  f6 {[%clk 0:00:16]} 28. Bh6+ {[%clk 0:00:13]}  Kxh6 {[%clk 0:00:13]} 0-1


[Site "https://www.chess.com"]

[Event "Titled Tuesday Blitz January 31 Early 2023"]
[White "Rodriguez, Santiago"]
[Black "Kopczynski, Michal"]
[WhiteFideId "3000591"]
[BlackFideId "1124200"]
[WhiteElo "2252"]
[BlackElo "2225"]
[Result "1-0"]
[Round "07"]
[TimeControl "180+2"]
[Date "2023.01.31"]
[WhiteClock "0:00:29"]
[BlackClock "0:00:19"]

1. d4 {[%clk 0:02:59]}  Nf6 {[%clk 0:02:59]} 2. Bg5 {[%clk 0:02:59]}  Ne4 {[%clk 0:02:59]} 3. Bf4 {[%clk 0:02:59]}  g5 {[%clk 0:03:00]} 4. Bc1 {[%clk 0:02:59]}  h6 {[%clk 0:02:58]} 5. f3 {[%clk 0:02:59]}  Nf6 {[%clk 0:02:58]} 6. e4 {[%clk 0:03:00]}  d6 {[%clk 0:02:57]} 7. Nc3 {[%clk 0:03:00]}  Bg7 {[%clk 0:02:58]} 8. Be3 {[%clk 0:03:00]}  Nbd7 {[%clk 0:02:57]} 9. Qd2 {[%clk 0:02:59]}  c5 {[%clk 0:02:57]} 10. Nge2 {[%clk 0:02:58]}  cxd4 {[%clk 0:02:56]} 11. Nxd4 {[%clk 0:02:58]}  Nb6 {[%clk 0:02:56]} 12. h4 {[%clk 0:02:58]}  g4 {[%clk 0:02:54]} 13. O-O-O {[%clk 0:02:57]}  Bd7 {[%clk 0:02:48]} 14. h5 {[%clk 0:02:52]}  a6 {[%clk 0:02:40]} 15. f4 {[%clk 0:02:52]}  Qc7 {[%clk 0:02:38]} 16. e5 {[%clk 0:02:33]}  dxe5 {[%clk 0:02:35]} 17. fxe5 {[%clk 0:02:33]}  Qxe5 {[%clk 0:02:35]} 18. Bf4 {[%clk 0:02:10]}  Qa5 {[%clk 0:02:16]} 19. Kb1 {[%clk 0:02:09]}  Rc8 {[%clk 0:02:14]} 20. Bd3 {[%clk 0:02:03]}  Nc4 {[%clk 0:02:07]} 21. Bxc4 {[%clk 0:01:55]}  Rxc4 {[%clk 0:02:08]} 22. Rhe1 {[%clk 0:01:49]}  O-O {[%clk 0:01:59]} 23. Nb3 {[%clk 0:01:21]}  Qf5 {[%clk 0:01:28]} 24. Bxh6 {[%clk 0:01:17]}  Rfc8 {[%clk 0:01:24]} 25. Bxg7 {[%clk 0:01:15]}  Kxg7 {[%clk 0:01:25]} 26. h6+ {[%clk 0:01:13]}  Kh7 {[%clk 0:01:22]} 27. Rxe7 {[%clk 0:01:11]}  Be6 {[%clk 0:01:16]} 28. Nd4 {[%clk 0:01:05]}  Rxd4 {[%clk 0:01:04]} 29. Qxd4 {[%clk 0:01:06]}  Rc4 {[%clk 0:00:54]} 30. Qd8 {[%clk 0:00:48]}  Rxc3 {[%clk 0:00:38]} 31. bxc3 {[%clk 0:00:45]}  Ne4 {[%clk 0:00:32]} 32. Qd4 {[%clk 0:00:30]}  Nf2 {[%clk 0:00:19]} 33. Qg7# {[%clk 0:00:29]} 1-0


[Site "https://www.chess.com"]

[Event "Titled Tuesday Blitz January 31 Early 2023"]
[White "Aaditya Dhingra"]
[Black "Wahedi, Ahmad Siar"]
[WhiteFideId "25678191"]
[BlackFideId "4651260"]
[WhiteElo "2027"]
[BlackElo "2274"]
[Result "0-1"]
[Round "07"]
[TimeControl "180+2"]
[Date "2023.01.31"]
[WhiteClock "0:00:10"]
[BlackClock "0:00:32"]

1. d4 {[%clk 0:03:00]}  d5 {[%clk 0:02:57]} 2. Bf4 {[%clk 0:03:00]}  Nf6 {[%clk 0:02:54]} 3. e3 {[%clk 0:02:59]}  c5 {[%clk 0:02:52]} 4. c3 {[%clk 0:02:58]}  Nc6 {[%clk 0:02:50]} 5. Nd2 {[%clk 0:02:57]}  e6 {[%clk 0:02:48]} 6. Ngf3 {[%clk 0:02:56]}  Bd6 {[%clk 0:02:45]} 7. Bg3 {[%clk 0:02:55]}  b6 {[%clk 0:02:42]} 8. Bd3 {[%clk 0:02:53]}  Bb7 {[%clk 0:02:42]} 9. Ne5 {[%clk 0:02:49]}  Bxe5 {[%clk 0:02:38]} 10. dxe5 {[%clk 0:02:47]}  Nd7 {[%clk 0:02:37]} 11. f4 {[%clk 0:02:46]}  h5 {[%clk 0:02:21]} 12. h3 {[%clk 0:02:39]}  h4 {[%clk 0:02:19]} 13. Bf2 {[%clk 0:02:38]}  Qe7 {[%clk 0:02:11]} 14. e4 {[%clk 0:02:32]}  d4 {[%clk 0:02:03]} 15. Nf3 {[%clk 0:01:59]}  dxc3 {[%clk 0:02:00]} 16. bxc3 {[%clk 0:02:00]}  O-O-O {[%clk 0:01:58]} 17. Qe2 {[%clk 0:01:59]}  f6 {[%clk 0:01:57]} 18. exf6 {[%clk 0:01:56]}  gxf6 {[%clk 0:01:57]} 19. O-O {[%clk 0:01:49]}  Rdg8 {[%clk 0:01:46]} 20. Bxh4 {[%clk 0:01:45]}  e5 {[%clk 0:01:45]} 21. Bc4 {[%clk 0:01:40]}  Rg7 {[%clk 0:01:40]} 22. f5 {[%clk 0:01:38]}  Na5 {[%clk 0:01:34]} 23. Be6 {[%clk 0:01:35]}  Kc7 {[%clk 0:01:29]} 24. Rad1 {[%clk 0:01:16]}  Nf8 {[%clk 0:01:27]} 25. Bd5 {[%clk 0:01:14]}  Rgh7 {[%clk 0:01:17]} 26. Bf2 {[%clk 0:01:07]}  Qg7 {[%clk 0:01:16]} 27. Kh2 {[%clk 0:00:57]}  Qg4 {[%clk 0:01:09]} 28. Ng1 {[%clk 0:00:33]}  Rxh3+ {[%clk 0:00:44]} 29. gxh3 {[%clk 0:00:33]}  Rxh3+ {[%clk 0:00:45]} 30. Nxh3 {[%clk 0:00:33]}  Qxe2 {[%clk 0:00:45]} 31. Rde1 {[%clk 0:00:25]}  Qh5 {[%clk 0:00:43]} 32. Bxb7 {[%clk 0:00:23]}  Kxb7 {[%clk 0:00:42]} 33. Rg1 {[%clk 0:00:20]}  Ka6 {[%clk 0:00:42]} 34. Rg7 {[%clk 0:00:19]}  Nc4 {[%clk 0:00:41]} 35. Reg1 {[%clk 0:00:16]}  Nd2 {[%clk 0:00:37]} 36. Re7 {[%clk 0:00:12]}  Nf3+ {[%clk 0:00:36]} 37. Kg2 {[%clk 0:00:12]}  Qg4+ {[%clk 0:00:33]} 38. Kf1 {[%clk 0:00:10]}  Qxh3+ {[%clk 0:00:32]} 39. Ke2 {[%clk 0:00:11]}  Nxg1+ {[%clk 0:00:33]} 40. Bxg1 {[%clk 0:00:12]}  Qg4+ {[%clk 0:00:32]} 41. Kf1 {[%clk 0:00:10]}  Qxe4 {[%clk 0:00:32]} 42. Rf7 {[%clk 0:00:10]}  Qxf5+ {[%clk 0:00:32]} 0-1


[Site "https://www.chess.com"]

[Event "Titled Tuesday Blitz January 31 Early 2023"]
[White "Gressmann, Moritz"]
[Black "Martynov, Pavel"]
[WhiteFideId "24695084"]
[BlackFideId "4101260"]
[WhiteElo "2129"]
[BlackElo "2414"]
[Result "0-1"]
[Round "07"]
[TimeControl "180+2"]
[Date "2023.01.31"]
[WhiteClock "0:00:01"]
[BlackClock "0:00:11"]

1. c4 {[%clk 0:03:00]}  e6 {[%clk 0:02:56]} 2. Nf3 {[%clk 0:03:00]}  d5 {[%clk 0:02:57]} 3. e3 {[%clk 0:02:58]}  c5 {[%clk 0:02:57]} 4. b3 {[%clk 0:02:57]}  Nc6 {[%clk 0:02:57]} 5. Bb2 {[%clk 0:02:57]}  Nf6 {[%clk 0:02:57]} 6. Be2 {[%clk 0:02:56]}  Be7 {[%clk 0:02:57]} 7. O-O {[%clk 0:02:57]}  O-O {[%clk 0:02:57]} 8. cxd5 {[%clk 0:02:57]}  exd5 {[%clk 0:02:57]} 9. d4 {[%clk 0:02:58]}  a6 {[%clk 0:02:57]} 10. dxc5 {[%clk 0:02:56]}  Bxc5 {[%clk 0:02:57]} 11. Nc3 {[%clk 0:02:53]}  Re8 {[%clk 0:02:54]} 12. Rc1 {[%clk 0:02:51]}  Ba7 {[%clk 0:02:54]} 13. Na4 {[%clk 0:02:46]}  Ne4 {[%clk 0:02:53]} 14. Nc3 {[%clk 0:02:37]}  Nf6 {[%clk 0:02:51]} 15. Na4 {[%clk 0:02:37]}  Be6 {[%clk 0:02:17]} 16. Nc5 {[%clk 0:02:34]}  Bxc5 {[%clk 0:02:15]} 17. Rxc5 {[%clk 0:02:34]}  Ne4 {[%clk 0:02:15]} 18. Rc1 {[%clk 0:02:30]}  Qa5 {[%clk 0:02:11]} 19. a3 {[%clk 0:02:23]}  Rad8 {[%clk 0:02:11]} 20. Nd4 {[%clk 0:02:23]}  Bd7 {[%clk 0:01:59]} 21. b4 {[%clk 0:02:18]}  Qb6 {[%clk 0:01:59]} 22. Bf3 {[%clk 0:02:15]}  Ne5 {[%clk 0:01:58]} 23. Be2 {[%clk 0:01:58]}  Qg6 {[%clk 0:01:55]} 24. Nf3 {[%clk 0:01:27]}  Nc4 {[%clk 0:01:39]} 25. Bxc4 {[%clk 0:01:04]}  dxc4 {[%clk 0:01:37]} 26. Ne5 {[%clk 0:00:58]}  Qe6 {[%clk 0:01:20]} 27. Qc2 {[%clk 0:00:46]}  Bc6 {[%clk 0:00:50]} 28. Qxc4 {[%clk 0:00:26]}  Qxc4 {[%clk 0:00:45]} 29. Nxc4 {[%clk 0:00:25]}  Bb5 {[%clk 0:00:46]} 30. f3 {[%clk 0:00:21]}  Bxc4 {[%clk 0:00:45]} 31. Rxc4 {[%clk 0:00:18]}  Nd2 {[%clk 0:00:45]} 32. Rc7 {[%clk 0:00:17]}  Nxf1 {[%clk 0:00:45]} 33. Kxf1 {[%clk 0:00:18]}  Rxe3 {[%clk 0:00:36]} 34. Rxb7 {[%clk 0:00:18]}  h6 {[%clk 0:00:32]} 35. Rb6 {[%clk 0:00:15]}  Rb3 {[%clk 0:00:29]} 36. Be5 {[%clk 0:00:11]}  Rd2 {[%clk 0:00:28]} 37. Bg3 {[%clk 0:00:05]}  Rb1+ {[%clk 0:00:26]} 38. Be1 {[%clk 0:00:05]}  Rdd1 {[%clk 0:00:20]} 39. Rb8+ {[%clk 0:00:05]}  Kh7 {[%clk 0:00:21]} 40. Re8 {[%clk 0:00:06]}  Rb3 {[%clk 0:00:19]} 41. a4 {[%clk 0:00:06]}  Rxb4 {[%clk 0:00:19]} 42. a5 {[%clk 0:00:06]}  Rb2 {[%clk 0:00:16]} 43. Re5 {[%clk 0:00:04]}  Ra1 {[%clk 0:00:15]} 44. f4 {[%clk 0:00:01]}  f6 {[%clk 0:00:14]} 45. Rd5 {[%clk 0:00:01]}  Kg6 {[%clk 0:00:14]} 46. Rd4 {[%clk 0:00:01]}  Rba2 {[%clk 0:00:11]} 0-1


[Site "https://www.chess.com"]